Cogmind - Beta 12 @@@ ROGUE MODE // 2023.11.22 @ 15:01:57 Player: Rainynight Result: Destroyed by X-62 Marksman with Pulse Rifle Performance ------------- Evolutions (2) 1000 Regions Visited (7) 1400 Robots Destroyed (26) 130 Value Destroyed (697) 697 Prototype IDs (25) 500 Alien Tech Used (0) 0 Bonus (328) 328 TOTAL SCORE: 4055 Bonus ------- Follower Combat Kills 28 Aligned with FarCom 300 Cogmind --------- Core Integrity 0/550 Matter 93/300 Energy 100/100 System Corruption 4% Temperature Cool (9) Movement Core (450) Ox8 Location -8/Materials Parts ------- > --- POWER (1) -------- (None) > --- PROPULSION (4) --- (None) > --- UTILITY (4) ------ Medium Storage Unit Medium Armor Plating Medium Armor Plating > --- WEAPON (2) ------- Mini Grenade Launcher > --- INVENTORY (10) --- Surge Thruster Flying Fortress v7 Large Storage Unit Chronowheel Longsword +1 Peak State ------------ > --- POWER ------------ (None) > --- PROPULSION ------- Flight Unit Flight Unit Flight Unit > --- UTILITY ---------- Medium Armor Plating Medium Armor Plating > --- WEAPON ----------- Longsword +1 > --- INVENTORY -------- Flying Fortress v7 Mini Grenade Launcher [Rating: 18] Favorites ----------- Power Reinforced Ion Engine Engine Reinforced Ion Engine Propulsion Light Treads Treads Light Treads Leg Aluminum Leg Wheel Armored Wheel Flight Unit Flight Unit Utility Medium Storage Unit Device Improved Terrain Scanner Storage Medium Storage Unit Processor Targeting Computer Protection Medium Armor Plating Weapon Improved Light Cannon Energy Gun EM Pulse Gun Ballistic Gun Assault Rifle Ballistic Cannon Improved Light Cannon Launcher Mini Grenade Launcher Impact Weapon Mace Slashing Weapon Longsword +1 Build | -11 -10 -10 -9 -9 -9 -8 -8 ------- Run | Jun Mat Min Mat Min Exi Min Mat Slots Evolved 4 | . . . 2 . . . 2 Power . | . . . . . . . . Propulsion 2 | . . . 1 . . . 1 Utility 2 | . . . 1 . . . 1 Weapon . | . . . . . . . . Parts Attached 43 | . 5 . 17 4 10 1 6 Power 2 | . . . 1 1 . . . Engine 2 | . . . 1 1 . . . Core . | . . . . . . . . Reactor . | . . . . . . . . Propulsion 12 | . 2 . 5 1 3 . 1 Treads 4 | . 1 . 2 1 . . . Leg . | . . . . . . . . Wheel 4 | . 1 . 3 . . . . Hover . | . . . . . . . . Flight 4 | . . . . . 3 . 1 Utility 13 | . 1 . 6 . 3 1 2 Device 4 | . . . 3 . . 1 . Storage 2 | . 1 . . . 1 . . Processor 1 | . . . 1 . . . . Hackware . | . . . . . . . . Protection 6 | . . . 2 . 2 . 2 Artifact . | . . . . . . . . Weapon 16 | . 2 . 5 2 4 . 3 Energy Gun 4 | . 2 . 2 . . . . Energy Cannon . | . . . . . . . . Ballistic Gun . | . . . . . . . . Ballistic Cannon 4 | . . . 3 1 . . . Launcher 4 | . . . . 1 1 . 2 Special Weapon . | . . . . . . . . Impact Weapon 2 | . . . . . 2 . . Slashing Weapon 2 | . . . . . 1 . 1 Piercing Weapon . | . . . . . . . . Special Melee Weapon . | . . . . . . . . Unidentified Prototypes . | . . . . . . . . Corrupted Parts 1 | . 1 . . . . . . System Corruption 1 | . 1 . . . . . . Parts Lost 8 | . . . 4 . . . 4 Power . | . . . . . . . . Propulsion 4 | . . . 1 . . . 3 Utility 1 | . . . 1 . . . . Weapon 3 | . . . 2 . . . 1 Highest Loss Streak 4 | . . . 3 . . . 4 To Critical Strikes . | . . . . . . . . Average Slot Usage (%) 75 | . 84 85 79 100 78 55 32 Engine 7 | . 14 14 11 11 5 . . Treads 10 | . 2 14 16 22 11 . . Leg 3 | . 22 . . . . . . Wheel 6 | . 2 14 11 11 5 . . Flight 7 | . . . . . 15 33 9 Device 1 | . . . 2 . . 6 2 Storage 10 | . 14 14 11 11 9 11 9 Protection 8 | . . . 4 22 12 . 4 Energy Gun 5 | . 26 28 7 . . . . Ballistic Cannon 9 | . . . 14 21 11 . . Impact Weapon 1 | . . . . . 4 4 . Naked Turns . | . . . . . . . . Heaviest Build 42 | 12 17 17 39 42 42 12 25 Greatest Support 22 | 20 20 10 22 12 12 12 12 Greatest Overweight (x) 8 | . 1 1 3 3 3 . 8 Average Overweight (x) 1 | . . 1 1 3 1 . 1 Largest Inventory Capacity 10 | . 10 10 10 10 10 10 10 Average Capacity 9 | . 9 10 10 10 9 10 10 Most Carried 10 | . 10 10 10 10 10 10 10 Average Carried 9 | . 9 10 9 9 9 10 9 Final Capacity 10 | 8 10 10 10 10 10 10 10 Final Carried 10 | 6 10 10 10 10 10 10 8 Class Distribution -------------------- 48% | Mutant 42% | Scavenger-Mutant 9% | Scavenger-Scout Dominant Class ---------------- Mutant | -10/Materials Mutant | -10/Mines Mutant | -9/Materials Scavenger-Mutant | -9/Mines Scavenger-Mutant | -9/Exiles Scavenger-Scout | -8/Mines Mutant | -8/Materials Resources | -11 -10 -10 -9 -9 -9 -8 -8 ----------- Run | Jun Mat Min Mat Min Exi Min Mat Matter Collected 622 | 200 50 . 173 156 . 32 11 Remotely . | . . . . . . . . Salvage Created 792 | . 176 . 327 88 . . 201 Parts 54 | . 15 . 18 2 . . 19 Haulers Intercepted 2 | . 1 . . . . . 1 Recyclers Shooed . | . . . . . . . . Parts Field Recycled . | . . . . . . . . Retrieved Matter . | . . . . . . . . Parts Self-Destructed . | . . . . . . . . Prevented . | . . . . . . . . Kills | -11 -10 -10 -9 -9 -9 -8 -8 ------- Run | Jun Mat Min Mat Min Exi Min Mat Combat Hostiles Destroyed 21 | . 5 . 8 3 . . 5 Guns 8 | . 5 . 3 . . . . Cannons 8 | . . . 5 3 . . . AOE 5 | . . . . . . . 5 Classes Destroyed 10 | . 3 . 2 1 . . 4 Worker 1 | . . . . . . . 1 Hauler 2 | . 1 . . . . . 1 Recycler 1 | . . . . . . . 1 Watcher 1 | . . . . . . . 1 Swarmer 4 | . 4 . . . . . . Cutter 3 | . . . . . . . 3 Grunt 9 | . 1 . 4 2 . . 2 Brawler 1 | . . . . 1 . . . Duelist 1 | . . . 1 . . . . Sentry 3 | . . . 3 . . . . Best Kill Streak 5 | . 3 . 5 3 . . 4 Combat Bots Only 5 | . 3 . 5 3 . . 3 Max Kills in Single Turn 2 | . 1 . 1 1 . . 2 Gunslinging . | . . . . . . . . Exploded 2 | . . . . . . . 2 Melee . | . . . . . . . . Uniques/NPCs Destroyed . | . . . . . . . . Combat | -11 -10 -10 -9 -9 -9 -8 -8 -------- Run | Jun Mat Min Mat Min Exi Min Mat Damage Taken 1743 | . 119 . 565 191 . . 868 Core 692 | . 45 . 76 12 . . 559 Absorbed by Shields . | . . . . . . . . Core Remaining (%) 86 | 100 . 82 . . . 78 . Volleys Fired 60 | . 15 . 28 7 . . 10 Largest 2 | . 2 . 2 2 . . 1 Hottest 80 | . 80 . 80 78 . . 30 Shots Fired 106 | . 30 . 52 14 . . 10 Gun 62 | . 30 . 32 . . . . Cannon 34 | . . . 20 14 . . . Launcher 10 | . . . . . . . 10 Special . | . . . . . . . . Kinetic 34 | . . . 20 14 . . . Thermal . | . . . . . . . . Explosive 10 | . . . . . . . 10 Electromagnetic 62 | . 30 . 32 . . . . Robot Hit Streak 8 | . 6 . 8 8 . . 6 Robot Miss Streak 4 | . 3 . 4 1 . . 1 Penetration Max . | . . . . . . . . Secondary Targets . | . . . . . . . . Shots Hit Robots 72 | . 19 . 34 11 . . 8 Core Hits 40 | . 7 . 12 3 . . 18 Critical Kills . | . . . . . . . . Critical Parts Destroyed . | . . . . . . . . Critical Strikes 2 | . . . 2 . . . . Blast 2 | . . . 2 . . . . Melee Attacks . | . . . . . . . . Impact . | . . . . . . . . Slashing . | . . . . . . . . Piercing . | . . . . . . . . Sneak Attacks . | . . . . . . . . Combat Hostiles . | . . . . . . . . Follow-up Attacks . | . . . . . . . . Damage Inflicted 1821 | . 246 . 626 243 . . 706 Guns 496 | . 246 . 250 . . . . Cannons 546 | . . . 303 243 . . . Explosions 777 | . . . 71 . . . 706 Melee . | . . . . . . . . Ramming 2 | . . . 2 . . . . Kinetic 546 | . . . 303 243 . . . Thermal 71 | . . . 71 . . . . Explosive 706 | . . . . . . . 706 Electromagnetic 496 | . 246 . 250 . . . . Impact . | . . . . . . . . Slashing . | . . . . . . . . Piercing . | . . . . . . . . Highest Corruption 4 | . 1 1 . . . . 4 Average Corruption 2 | . 1 1 . . . . 4 Corruption Purged . | . . . . . . . . Corruption Blocked . | . . . . . . . . Effects 2 | . . . . . . . 2 Data Loss (minor) 2 | . . . . . . . 2 Overload Shots . | . . . . . . . . Overflow Damage 18 | . . . 9 . . . 9 Projectiles . | . . . . . . . . Explosions 18 | . . . 9 . . . 9 Melee . | . . . . . . . . Knockbacks 6 | . . . 3 3 . . . Impact . | . . . . . . . . Kinetic 6 | . . . 3 3 . . . Secondary . | . . . . . . . . Self-Inflicted Damage 178 | . . . 34 . . . 144 Shots 4 | . . . 1 . . . 3 Rammed 1 | . . . 1 . . . . Targets Rammed 1 | . . . 1 . . . . Kicked . | . . . . . . . . Crushed . | . . . . . . . . Highest Temperature 258 | . 114 . 171 258 . . . Average Temperature 79 | . 55 . 75 127 . . . Received Heat Transfer 408 | . 30 . 192 60 . . 126 Siege Activations . | . . . . . . . . Robots Corrupted . | . . . . . . . . Combat Hostiles . | . . . . . . . . Parts Fried 4 | . 2 . 2 . . . . Impact Corruptions . | . . . . . . . . Robots Melted . | . . . . . . . . Combat Hostiles . | . . . . . . . . Parts Melted . | . . . . . . . . Heat Transferred 100 | . . . 100 . . . . Parts Sabotaged . | . . . . . . . . Parts Stolen . | . . . . . . . . Parts Stripped . | . . . . . . . . Power Chain Reactions 1 | . . . 1 . . . . Missiles Intercepted . | . . . . . . . . Alert | -11 -10 -10 -9 -9 -9 -8 -8 ------- Run | Jun Mat Min Mat Min Exi Min Mat Peak Influence 273 | . 132 51 266 273 . . 250 Initial 103 | . . 51 19 103 . . . Average 109 | . 55 51 134 197 . . 88 Maximum Alert Level 1 | . . . 1 1 . . 1 Low Security (%) 77 | . 100 100 63 60 . 100 82 Level 1 22 | . . . 36 39 . . 17 Level 2 . | . . . . . . . . Level 3 . | . . . . . . . . Level 4 . | . . . . . . . . Level 5 . | . . . . . . . . High Security . | . . . . . . . . Max Security . | . . . . . . . . Squads Dispatched 3 | . . . . . . . 3 Investigation . | . . . . . . . . Extermination . | . . . . . . . . Reinforcement 3 | . . . . . . . 3 Assault . | . . . . . . . . Garrison . | . . . . . . . . Intercept . | . . . . . . . . Searches Triggered . | . . . . . . . . Construction Impeded . | . . . . . . . . Haulers Reinforced . | . . . . . . . . Active Scanning Responses . | . . . . . . . . Cargo Convoy Interrupts . | . . . . . . . . Stealth | -11 -10 -10 -9 -9 -9 -8 -8 --------- Run | Jun Mat Min Mat Min Exi Min Mat Distress Signals 4 | . 1 . 2 . . . 1 Communications Jammed . | . . . . . . . . Distress Signals . | . . . . . . . . Times Spotted 39 | . 6 . 13 7 . . 13 Peak Tracking Total 7 | . 3 . 7 4 . . 6 Tactical Retreats 2 | . . . . . . . 2 Traps | -11 -10 -10 -9 -9 -9 -8 -8 ------- Run | Jun Mat Min Mat Min Exi Min Mat Traps Triggered . | . . . . . . . . Indirectly . | . . . . . . . . Trap Hack Attempts . | . . . . . . . . Triggered . | . . . . . . . . Disarmed . | . . . . . . . . Reprogrammed . | . . . . . . . . Reused . | . . . . . . . . Traps Extracted . | . . . . . . . . Installed . | . . . . . . . . Triggered . | . . . . . . . . Machines | -11 -10 -10 -9 -9 -9 -8 -8 ---------- Run | Jun Mat Min Mat Min Exi Min Mat Machines Disabled 2 | . 1 . . . . . 1 Max in Single Turn 1 | . 1 . . . . . 1 Machines Repaired . | . . . . . . . . Machines Sabotaged . | . . . . . . . . Overloaded Fab Kills . | . . . . . . . . Hacking | -11 -10 -10 -9 -9 -9 -8 -8 --------- Run | Jun Mat Min Mat Min Exi Min Mat Machines Accessed 5 | . . . 2 . 2 . 1 Terminals 3 | . . . 2 . . . 1 Fabricators . | . . . . . . . . Repair Stations . | . . . . . . . . Recycling Units . | . . . . . . . . Scanalyzers . | . . . . . . . . Garrison Access . | . . . . . . . . Total Hacks 11 | . . . 7 . 2 . 2 Successful 7 | . . . 5 . 2 . . Failed 4 | . . . 2 . . . 2 Catastrophic 2 | . . . 1 . . . 1 Database Lockouts . | . . . . . . . . Manual 6 | . . . 3 . 1 . 2 Terminals 9 | . . . 7 . . . 2 Fabricators . | . . . . . . . . Repair Stations . | . . . . . . . . Recycling Units . | . . . . . . . . Scanalyzers . | . . . . . . . . Garrison Access . | . . . . . . . . Terminal Hacks 7 | . . . 5 . 2 . . Record 1 | . . . . . 1 . . Robot Analysis 3 | . . . 3 . . . . Prototype ID Bank 1 | . . . 1 . . . . Branch Access Points 1 | . . . 1 . . . . EX-Prototype ID Bank 1 | . . . . . 1 . . Fabricator Hacks . | . . . . . . . . Repair Station Hacks . | . . . . . . . . Recycling Unit Hacks . | . . . . . . . . Scanalyzer . | . . . . . . . . Garrison Access Hacks . | . . . . . . . . Unauthorized Hacks . | . . . . . . . . Terminals . | . . . . . . . . Fabricators . | . . . . . . . . Repair Stations . | . . . . . . . . Recycling Units . | . . . . . . . . Scanalyzers . | . . . . . . . . Garrison Access . | . . . . . . . . Data Cores Recovered . | . . . . . . . . Used . | . . . . . . . . Hacking Detections 3 | . . . 2 . . . 1 Full Trace Events . | . . . . . . . . Feedback Events . | . . . . . . . . Feedback Blocked . | . . . . . . . . Robot Schematics Acquired . | . . . . . . . . Robots Built . | . . . . . . . . Authchips . | . . . . . . . . Time . | . . . . . . . . Total Robot Build Rating . | . . . . . . . . Part Schematics Acquired . | . . . . . . . . Parts Built . | . . . . . . . . Authchips . | . . . . . . . . Time . | . . . . . . . . Total Part Build Rating . | . . . . . . . . Parts Repaired . | . . . . . . . . Time . | . . . . . . . . Parts Recycled . | . . . . . . . . Recycled Matter . | . . . . . . . . Retrieved Matter . | . . . . . . . . Retrieved Components . | . . . . . . . . Parts Scanalyzed . | . . . . . . . . Part Schematics Acquired . | . . . . . . . . Parts Damaged . | . . . . . . . . Bothacking | -11 -10 -10 -9 -9 -9 -8 -8 ------------ Run | Jun Mat Min Mat Min Exi Min Mat Used RIF Installer . | . . . . . . . . Robots Hacked . | . . . . . . . . Non-combat . | . . . . . . . . Combat . | . . . . . . . . Robot Hacks Applied . | . . . . . . . . Relay Couplers Released . | . . . . . . . . Fabnet Peak Effective % . | . . . . . . . . Robots Rewired . | . . . . . . . . Allies Hacked . | . . . . . . . . Hacks Repelled . | . . . . . . . . Allies | -11 -10 -10 -9 -9 -9 -8 -8 -------- Run | Jun Mat Min Mat Min Exi Min Mat Total Allies 5 | . . . . 5 . . . Largest Group 5 | . . . . 5 5 3 3 Highest-Rated Group 88 | . . . . 88 88 40 40 Highest-Rated Ally 31 | . . . . 31 31 16 16 Total Orders 1 | . . . . . . 1 . STAY 1 | . . . . . . 1 . Ally Attacks 15 | . . . . 12 . . 3 Total Damage 216 | . . . . 168 . . 48 Kills 4 | . . . . 4 . . . Allies Corrupted . | . . . . . . . . Allies Melted . | . . . . . . . . Intel | -11 -10 -10 -9 -9 -9 -8 -8 ------- Run | Jun Mat Min Mat Min Exi Min Mat Robot Analysis Total 3 | . . . 3 . . . . Derelict Logs Recovered 1 | . . 1 . . . . . Drone Launches . | . . . . . . . . Drone Recoveries . | . . . . . . . . Exploration | -11 -10 -10 -9 -9 -9 -8 -8 ------------- Run | Jun Mat Min Mat Min Exi Min Mat Turns Passed 1475 | . 203 31 339 264 309 133 196 Spaces Moved 1262 | 1 115 33 187 155 274 354 143 Core 17 | . . . . . 2 . 15 Treads . | . . . . . . . . Legs 90 | 1 89 . . . . . . Wheels 514 | . 26 33 187 155 113 . . Hover . | . . . . . . . . Flight 641 | . . . . . 159 354 128 Fastest Speed 34 | 120 95 95 85 135 34 34 34 Average Speed 83 | 120 114 95 114 135 76 34 97 Slowest Speed 450 | 120 120 95 135 135 200 34 450 Overloaded Moves . | . . . . . . . . Propulsion Burnouts . | . . . . . . . . Robots Hopped 4 | . . . . . . 4 . Cave-ins Triggered . | . . . . . . . . Exploration Rate (%) 32 | 2 26 19 15 34 60 84 16 Regions Visited 7 Branch Regions 4 Pre-discovered Areas 1 | . . . . . 1 . . Known Exits Taken 1 | . . . 1 . . . . Unknown Exits Taken 6 | 1 1 1 . 1 1 1 . Scrap Searched 2 | . . . . 1 . 1 . Spaces Dug . | . . . . . . . . Terrain Destroyed 58 | . . . 5 . . . 53 Melee . | . . . . . . . . Projectile 1 | . . . 1 . . . . AOE 57 | . . . 4 . . . 53 Terrain Rammed . | . . . . . . . . Walls Destroyed . | . . . . . . . . Machines Disabled . | . . . . . . . . Actions | -11 -10 -10 -9 -9 -9 -8 -8 --------- Run | Jun Mat Min Mat Min Exi Min Mat Total 1582 | . 162 32 261 196 379 361 191 Wait 148 | . 4 . 5 27 71 10 31 Move 1247 | . 114 32 186 154 273 345 143 Hop 4 | . . . . . . 4 . Pick Up 28 | . 11 . 10 1 6 . . Fast Attach 22 | . 3 . 8 . 7 1 3 Attach 10 | . . . 4 . 3 . 3 Detach 8 | . 3 . . . 4 . 1 Swap 11 | . 2 . 5 4 . . . Drop 43 | . 10 . 14 3 15 1 . Fire 60 | . 15 . 28 7 . . 10 Melee . | . . . . . . . . Ram . | . . . . . . . . Kick . | . . . . . . . . Crush 1 | . . . 1 . . . . Escape Stasis . | . . . . . . . . Rewire . | . . . . . . . . Trap . | . . . . . . . . Miscellaneous . | . . . . . . . . Route ------- -11/Junkyard -10/Materials -10/Mines -9/Materials (discovered 2 exits: *Min x2) -9/Mines -9/Exiles -8/Mines (discovered 2 exits: *Mat x2) -8/Materials History --------- Turn | Location | Event 1 | -11/Junkyard | Discovered new exit (range 0) 1 | -11/Junkyard | Entered Materials 133 | -10/Materials | Discovered new exit (range 6) 204 | -10/Materials | Entered Mines 209 | -10/Mines | Learned Materials terminal intel 223 | -10/Mines | Discovered new exit (range 15) 235 | -10/Mines | Entered Materials 235 | -9/Materials | Evolved 2 slots: Propulsion x1, Utility x1 236 | -9/Materials | Loaded intel: 12 terminal locations 240 | -9/Materials | Identified exit to Mines 323 | -9/Materials | Build established: Mutant 332 | -9/Materials | Lost 3 parts (1n2w) 574 | -9/Materials | Entered Mines 646 | -9/Mines | Joined a pair of Derelicts in attacking an 0b10 outpost 689 | -9/Mines | Assembled infested the area 783 | -9/Mines | Assisted by bots powering up and referring to "LRC-V3" 828 | -9/Mines | Deemed a non-threat by the Exiles lab entrance 828 | -9/Mines | Discovered new exit (range 5) 838 | -9/Mines | Entered Exiles 838 | -9/Exiles | Accompanied by 5 allies 868 | -9/Exiles | Led the pair of lost Derelicts to a safe place 871 | -9/Exiles | Met 8R-AWN 894 | -9/Exiles | Met EX-HEX 932 | -9/Exiles | Build established: Scavenger-Mutant 933 | -9/Exiles | Met EX-BIN 952 | -9/Exiles | Aligned with FarCom system 953 | -9/Exiles | Given EX-Vault access code 986 | -9/Exiles | Opened EX-Vault 1002 | -9/Exiles | Found Flying Fortress v7 1005 | -9/Exiles | Found Longsword +1 1031 | -9/Exiles | Found Chronowheel 1045 | -9/Exiles | Warned to stay clear of 0b10 Research branches 1055 | -9/Exiles | Met EX-DEC 1057 | -9/Exiles | Learned location of Zion (-7) 1079 | -9/Exiles | Discovered new exit (range 10) 1147 | -9/Exiles | Stole three prototypes: Flying Fortress v7, Chronowheel, Longsword +1 1147 | -9/Exiles | Entered Mines 1147 | -8/Mines | Accompanied by 3 allies 1151 | -8/Mines | Discovered new exit (range 14) 1207 | -8/Mines | Discovered new exit (range 12) 1280 | -8/Mines | Entered Materials 1280 | -8/Materials | Accompanied by 3 allies 1280 | -8/Materials | Evolved 2 slots: Propulsion x1, Utility x1 1346 | -8/Materials | Core integrity fell below 50% 1363 | -8/Materials | Core integrity fell below 20% 1393 | -8/Materials | Lost 4 parts (3n1w) 1476 | -8/Materials | Destroyed by X-62 Marksman with Pulse Rifle Last Messages --------------- 01396_ ALERT: Suspicious intruders detected, dispatching Specialist reinforcements to area. 01435_ System corrupted: Component data lost. 01437_ G-47 Trooper destroyed. 01437_ A-02 Transporter destroyed. 01437_ Terminal disabled. 01442_ The unstable cave ceiling collapses. 01443_ G-47 Trooper destroyed. 01458_ R-06 Scavenger collects Lgt. Ion Engine. 01462_ R-06 Scavenger collects Wheel. 01466_ K-01 Serf collects debris. 01466_ R-06 Scavenger collects Wheel. 01466_ U-05 Engineer builds a Door. 01469_ K-01 Serf collects debris. 01472_ R-06 Scavenger collects Prototype Engine. 01473_ K-01 Serf collects debris. 01473_ W-25 Informer sends out distress signal. 01474_ W-25 Informer destroyed. 01476_ The unstable cave ceiling collapses. 01476_ K-01 Serf collects debris. Map ----- +----------------------------------------------------+ | | | | | | | ?????????????????????????????????????????????????? | | ?????????????????????????????????????????????????? | | ?????????????????????????????????????????????????? | | ?????????????????????????????????????????????????? | | ?????????????????????????????????????????????????? | | ??????????????????????#??????????????????????????? | | ?????????????????##???# """""???#????????????????? | | ???????????????#?# #### """"""" #????????????????? | | ?????????????????# #t""""""" #????????????????? | | ?????????????????# # """"""" #????????????????? | | ?????????????##### # """"""" #????????????????? | | ????#######??# # # ??????????????????? | | ??#?# ?# # # ! ???????????????????? | | ????# ?# # # # # ####??#?????????????? | | ????# # ## # ########+#????????? | | ????# # k ???????? | | ????# """ + x * r% ???????? | | ????# """"" # x [ [% ???????? | | ??????""""" # ### % #######+#????????? | | ????? ?"""" ?# #??# # #????????????????? | | ???#???""" ?# #???# #????????????????? | | ???????####??# ##??# #?????????????????? | | ???#########?# ###??# @ #?????????????????? | | ???# # # #??# #?????????????????? | | ???# # ##?# ! #?????????????????? | | ???# %* ### #?????????????????? | | ???# ## #?????????????????? | | ???# ## #?????????????????? | | ???# + ## #?????????????????? | | ???# ###########?????????????????? | | ???# #######?????????????????????? | | ???######### ! [ #?????????????????????? | | ?????? """ #?????????????????????? | | ??????""""" """"""" #?????????????????????? | | ??????""""" """"""" #?????????????????????? | | ??????""""" """"""" #?????????????????????? | | ????? """ """"""" #?????????????????????? | | ???? # """"""" #?????????????????????? | | ???# # # #?????????????????????? | | ???# !# #########?#?????????????????????? | | ???########### #???????????????????????????????? | | ? ???????????# #???????????????????????????????? | | ? ???????????# #???????????????????????????????? | | ????????????## ##??????????????????????????????? | | ???????? ????# #???????????????????????????????? | | ?????????? ??# #???????????????????????????????? | | ????????????? ??#?#??????????????????????????? | +----------------------------------------------------+ Best States ------------- Heat Dissipation 48 Energy Generation 12 Energy Capacity 265 Matter Stores 300 Matter Capacity 300 Sight Range 16 Terrain Scan Range 16 Terrain Scan Density 10 Armor Coverage 450 Evasion (%) 63 Targeting Accuracy 5 Recoil Reduction 2 Item Schematics ----------------- None Robot Schematics ------------------ None Fabricated ------------ Nothing Alien Tech Used ----------------- None Achievements -------------- None Challenges ------------ None Game ------ Seed MagneticPlasmaReactor Manual? 0 Play Time 00:17:43 Cumulative 336.9 hours Start 2023.11.22 @ 14:44:53 End 2023.11.22 @ 15:01:57 Sessions 1 Manual Loads 0 Difficulty Rogue Special Mode None Game No. 363 Rogue 336 Adventurer 2 Explorer 25 Win Type - Total 20 Types 17/1/0/2/0/0/0/0/0 Lore% 76 Gallery% 83 Achievement% 80 Wizard Run 0 Options --------- ASCII 1 Keyboard 1 Movement Numpad Keybinds 1 Fullscreen 1 Font 18/X11 Map View 76x50 Tactical HUD 1 Map Filters NONE Filters NONE Steam 1 RUN: 7a7f7e71-66da-4619-8a6b-1833e4121216